bitfinex-derivatives/quotes_SOLF0:USTF0_20250505
["timestamp","ask_amount","ask_price","bid_price","bid_amount"]
[1746431243563,6.8129,146.78,146.75,6.8139]
[1746431244567,6.8131,146.77,146.74,6.8142]
[1746431248373,6.8127,146.78,146.74,6.8142]
[1746431251371,34.641433,146.79,146.76,6.8134]
[1746431253571,6.8126,146.78,146.75,6.8138]
[1746431258380,34.641433,146.79,146.76,6.8134]
[1746431258581,27.829233,146.79,146.73,3.269233]
[1746431258983,34.641633,146.79,146.76,6.8133]
[1746431261583,6.8126,146.78,146.76,6.8133]
[1746431263384,6.8126,146.78,146.75,6.8137]
[1746431268593,6.8126,146.78,146.76,6.8134]
[1746431277610,6.8126,146.78,146.75,6.8138]
[1746431279203,24.56,146.79,146.77,6.813]
[1746431279598,3.269233,146.79,146.73,5.349833]
[1746431279800,3.269233,146.77,146.75,6.8137]
[1746431281905,10.082233,146.77,146.75,6.8137]
[1746431282089,3.269233,146.77,146.74,6.8142]
[1746431282295,6.8135,146.76,146.72,24.46]
[1746431282487,3.269233,146.75,146.72,24.46]
[1746431282688,24.46,146.78,146.69,24.46]
[1746431282689,3.269233,146.73,146.69,24.46]
[1746431283191,3.269233,146.73,146.69,6.8166]
[1746431283397,3.269233,146.73,146.67,11.32330098]
[1746431283693,3.269233,146.73,146.67,3.269233]
[1746431284589,6.8155,146.72,146.68,6.817]
[1746431285399,6.8155,146.72,146.69,6.8167]
[1746431286896,10.084233,146.73,146.7,6.8162]
[1746431288004,6.8153,146.72,146.69,6.8166]
[1746431288702,10.084233,146.73,146.69,6.8166]
[1746431289704,6.8154,146.72,146.69,6.8166]
[1746431289905,3.269233,146.73,146.69,6.8166]
[1746431290395,24.46,146.74,146.67,3.269233]
[1746431290601,24.46,146.74,146.69,3.269233]
[1746431290800,6.814,146.75,146.69,3.269233]
[1746431290996,6.814,146.75,146.71,6.8155]
[1746431291404,6.8138,146.76,146.69,3.269233]
[1746431291597,10.083033,146.76,146.7,1.9458]
[1746431291798,10.083033,146.76,146.7,26.2858]
[1746431293199,10.083033,146.76,146.72,6.8149]
[1746431294002,10.083033,146.76,146.71,6.8156]
[1746431294302,6.8141,146.75,146.71,6.8156]
[1746431295899,6.8141,146.75,146.72,6.8152]
[1746431296203,6.8147,146.74,146.7,26.2858]
[1746431296596,6.8147,146.74,146.7,33.1019]
[1746431298699,6.8147,146.74,146.71,6.8157]
[1746431300999,6.8147,146.74,146.7,33.1019]
[1746431301202,6.815,146.73,146.7,33.1019]
[1746431302002,6.8154,146.72,146.7,26.2858]
[1746431302298,3.269233,146.74,146.67,3.269233]
[1746431302500,3.269233,146.72,146.67,27.609233]
[1746431302703,6.8161,146.71,146.67,34.426433]
[1746431302906,6.8161,146.71,146.67,27.609233]
[1746431303403,10.084433,146.73,146.68,6.8169]
[1746431303798,10.084433,146.73,146.67,27.609233]
[1746431304004,10.084433,146.73,146.69,6.8166]
[1746431304801,10.084433,146.73,146.7,6.8162]
[1746431310608,3.269233,146.73,146.67,27.609233]
[1746431310808,24.34,146.74,146.69,3.269233]
[1746431311510,3.269233,146.76,146.69,3.269233]
[1746431311906,10.082933,146.76,146.72,6.8149]
[1746431312111,10.082933,146.76,146.69,3.269233]
[1746431312411,10.082933,146.76,146.72,6.8149]
[1746431312814,6.8141,146.75,146.72,6.8149]
[1746431313106,6.8141,146.75,146.69,3.269233]
[1746431313312,3.269233,146.76,146.71,6.8156]
[1746431313814,6.8148,146.74,146.71,6.8156]
[1746431314010,3.269233,146.76,146.7,6.816]
[1746431314616,6.8147,146.74,146.7,6.816]
[1746431314814,6.8147,146.74,146.71,6.8157]
[1746431315414,6.8149,146.73,146.7,6.816]
[1746431318106,6.8154,146.72,146.69,10.085933]
[1746431318304,6.8154,146.72,146.69,6.8167]
[1746431320715,6.815,146.73,146.7,6.8162]
[1746431324524,6.815,146.73,146.71,6.8158]
[1746431325121,6.815,146.73,146.7,6.816]
[1746431327227,6.815,146.73,146.71,6.8157]
[1746431327826,4.40362693,146.72,146.7,6.8158]
[1746431328027,4.40366203,146.71,146.7,6.8158]
[1746431329427,27.589233,146.8,146.69,3.269233]
[1746431329627,27.589233,146.8,146.74,3.269233]
[1746431329821,6.8124,146.79,146.74,3.269233]
[1746431330020,6.8124,146.79,146.75,6.8136]
[1746431330327,11.21511649,146.78,146.75,6.8136]
[1746431330629,4.40261649,146.77,146.75,6.8136]
[1746431330829,4.40261649,146.76,146.75,6.8136]
[1746431333628,4.38994895,146.76,146.75,6.8136]
[1746431333831,6.8125,146.78,146.75,6.8136]
[1746431334128,4.38988825,146.77,146.75,6.8136]
[1746431334328,6.8125,146.78,146.75,6.8136]
[1746431334521,4.38985397,146.77,146.75,6.8136]
[1746431334717,6.8125,146.78,146.75,6.8136]
[1746431334920,4.38721002,146.77,146.75,6.8136]
[1746431335121,6.8125,146.78,146.75,6.8136]
[1746431335318,4.38720136,146.77,146.75,6.8136]
[1746431335621,6.8125,146.78,146.75,6.8136]
[1746431335822,4.38691937,146.77,146.75,6.8136]
[1746431336020,6.8125,146.78,146.75,6.8136]
[1746431336217,4.38691937,146.77,146.75,6.8136]
[1746431336423,6.8125,146.78,146.75,6.8136]
[1746431337532,11.19957395,146.77,146.75,6.8136]
[1746431337721,6.813,146.77,146.75,6.8136]
[1746431337925,27.589233,146.8,146.75,6.8136]
[1746431338224,6.8128,146.78,146.75,6.8136]
[1746431338425,4.3866564,146.77,146.75,6.8136]
[1746431338625,6.8128,146.78,146.75,6.8136]
[1746431338825,4.3861774,146.77,146.75,6.8136]
[1746431339029,6.8128,146.78,146.75,6.8136]
[1746431339230,4.38701652,146.77,146.75,6.8136]
[1746431339430,6.8128,146.78,146.75,6.8136]
[1746431339731,4.38701774,146.77,146.75,6.8136]
[1746431339925,6.8128,146.78,146.75,6.8136]
[1746431340229,4.39373282,146.77,146.75,6.8136]
[1746431340429,6.8128,146.78,146.75,6.8136]
[1746431340731,4.39373282,146.77,146.75,6.8136]
[1746431341031,6.8128,146.78,146.75,6.8136]
[1746431341232,4.39679321,146.77,146.75,6.8136]
[1746431341531,6.8128,146.78,146.75,6.8136]
[1746431341730,11.20949421,146.77,146.74,6.8141]
[1746431342032,6.813,146.77,146.74,6.8141]
[1746431343428,10.081833,146.78,146.74,6.8141]
[1746431343730,4.39993232,146.77,146.74,6.8141]
[1746431343930,10.081833,146.78,146.75,6.8138]
[1746431344130,4.39993214,146.77,146.75,6.8138]
[1746431344324,10.081833,146.78,146.75,6.8138]
[1746431344524,4.39835342,146.77,146.75,6.8138]
[1746431344725,10.081833,146.78,146.75,6.8138]
[1746431344926,4.39835341,146.77,146.75,6.8138]
[1746431345125,10.081833,146.78,146.75,6.8138]
[1746431345326,4.39984798,146.77,146.75,6.8138]
[1746431345524,10.081833,146.78,146.75,6.8138]
[1746431345725,4.39984798,146.77,146.75,6.8138]
[1746431346030,10.081833,146.78,146.76,6.8134]
[1746431346230,4.39984341,146.77,146.76,6.8134]
[1746431347336,4.39984341,146.77,146.73,24.32]
[1746431347635,10.081833,146.78,146.73,24.32]
[1746431347935,4.3959727,146.77,146.73,24.32]
[1746431348128,10.081833,146.78,146.73,24.32]
[1746431348326,4.39603732,146.77,146.73,24.32]
[1746431348525,10.081833,146.78,146.73,24.32]
[1746431348730,4.39861666,146.77,146.75,6.8136]
[1746431348926,10.081833,146.78,146.75,6.8136]
[1746431349132,3.269233,146.76,146.65,94.41162261]
[1746431349330,3.269233,146.72,146.66,1.9685]
[1746431349535,4.39862091,146.71,146.66,1.9685]
[1746431349730,3.269233,146.72,146.68,6.8167]
[1746431349931,4.40148314,146.71,146.68,6.8167]
[1746431350132,4.40054836,146.7,146.66,1.9685]
[1746431350332,3.269233,146.74,146.67,3.269233]
[1746431350532,4.4070876,146.73,146.67,3.269233]
[1746431350738,4.4070876,146.72,146.68,24.32]
[1746431350939,6.8152,146.73,146.69,6.8164]
[1746431351252,4.40676999,146.72,146.69,6.8164]
[1746431351540,6.8152,146.73,146.7,6.8161]
[1746431351735,4.40416357,146.72,146.7,6.8161]
[1746431351937,6.8152,146.73,146.7,6.8161]
[1746431352234,4.40416438,146.72,146.7,6.8161]
[1746431352440,6.8152,146.73,146.7,6.8161]
[1746431352739,4.404175,146.72,146.7,6.8161]
[1746431352936,6.8152,146.73,146.7,6.8161]
[1746431353239,4.40412557,146.72,146.7,6.8161]
[1746431353434,6.8152,146.73,146.7,6.8161]
[1746431353635,4.40282829,146.72,146.7,6.8161]
[1746431353835,6.8152,146.73,146.7,6.8161]
[1746431354036,4.40280141,146.72,146.7,6.8161]
[1746431354237,6.8152,146.73,146.7,6.8161]
[1746431354439,4.40284217,146.72,146.7,6.8161]
[1746431354639,3.269233,146.74,146.71,6.8155]
[1746431354833,4.40309921,146.73,146.71,6.8155]
[1746431355029,4.40309921,146.72,146.71,6.8155]
[1746431355235,24.32,146.75,146.71,6.8155]
[1746431355442,4.403322,146.74,146.71,6.8155]
[1746431355642,4.403322,146.73,146.71,6.8155]
[1746431355837,24.32,146.75,146.71,6.8155]
[1746431356036,4.39480148,146.74,146.69,5.289233]
[1746431356233,27.589233,146.78,146.71,3.269233]
[1746431356437,27.589233,146.78,146.69,2.02]
[1746431356438,4.39467103,146.77,146.73,3.269233]
[1746431356633,4.39378914,146.76,146.74,6.8141]
[1746431356838,6.8131,146.77,146.74,6.8141]
[1746431357135,4.38923397,146.76,146.74,6.8141]
[1746431357338,6.8131,146.77,146.74,6.8141]
[1746431357538,4.38916084,146.76,146.74,6.8141]
[1746431357843,6.8131,146.77,146.74,6.8141]
[1746431358640,34.401933,146.78,146.74,6.8141]
[1746431358844,4.38047358,146.77,146.75,6.8139]
[1746431359042,6.8127,146.78,146.75,6.8139]
[1746431359251,4.38237188,146.77,146.75,6.8139]
[1746431359545,6.8127,146.78,146.75,6.8139]
[1746431359847,6.8122,146.79,146.72,26.2557]
[1746431360035,4.39247289,146.78,146.72,26.2557]
[1746431360240,24.32,146.81,146.72,26.2557]
[1746431360443,11.2040028,146.8,146.76,6.8131]
[1746431360643,4.3922028,146.79,146.76,6.8131]
[1746431360847,4.3922028,146.78,146.77,6.813]
[1746431361144,6.8113,146.81,146.77,6.813]
[1746431361345,4.38908117,146.8,146.78,6.8124]
[1746431361646,4.38891634,146.79,146.76,24.32]
[1746431361847,0.37531,146.81,146.76,24.32]
[1746431362053,4.38905718,146.8,146.76,24.32]
[1746431362348,4.38905718,146.79,146.77,6.8127]
[1746431362548,6.8117,146.8,146.77,6.8127]
[1746431362750,4.38236741,146.79,146.77,6.8127]
[1746431362949,6.8117,146.8,146.77,6.8127]
[1746431363145,4.38238752,146.79,146.77,6.8127]
[1746431363346,6.8117,146.8,146.77,6.8127]
[1746431363546,4.40220182,146.79,146.77,6.8127]
[1746431363747,6.8117,146.8,146.77,6.8127]
[1746431364043,4.4023465,146.79,146.77,6.8127]
[1746431364244,4.40289446,146.78,146.76,31.1333]
[1746431364444,6.8124,146.79,146.76,24.32]
[1746431364644,4.40295114,146.78,146.76,24.32]
[1746431364843,6.8124,146.79,146.76,24.32]
[1746431365044,4.40313583,146.78,146.76,24.32]
[1746431365253,6.8124,146.79,146.76,24.32]
[1746431365453,4.402793,146.78,146.76,24.32]
[1746431365654,6.8124,146.79,146.76,24.32]
[1746431365952,4.4030222,146.78,146.76,24.32]
[1746431366156,6.8124,146.79,146.76,31.1334]
[1746431366357,4.40931485,146.78,146.76,31.1334]
[1746431366547,6.8124,146.79,146.76,31.1334]
[1746431366749,4.40931485,146.78,146.76,31.1334]
[1746431367046,6.8124,146.79,146.76,31.1334]
[1746431367356,4.40946058,146.78,146.76,31.1334]
[1746431367654,6.8124,146.79,146.76,31.1334]
[1746431367854,6.8125,146.78,146.76,24.32]
[1746431369553,6.8122,146.79,146.76,31.1334]
[1746431369850,4.40821026,146.78,146.76,31.1334]
[1746431370051,0.37531,146.81,146.76,24.32]
[1746431370258,4.40829892,146.8,146.76,24.32]
[1746431370456,4.40829892,146.79,146.76,24.32]
[1746431370656,4.40829892,146.78,146.73,24.32]
[1746431370957,4.40829892,146.77,146.73,24.32]
[1746431371151,24.32,146.8,146.73,24.32]
[1746431371453,4.40869727,146.79,146.73,24.32]
[1746431371654,4.40869727,146.78,146.73,24.32]
[1746431371856,11.22199727,146.77,146.74,6.8141]
[1746431372057,6.8133,146.77,146.74,6.8141]
[1746431373059,6.8135,146.76,146.73,31.1346]
[1746431374158,6.8135,146.76,146.74,6.8144]
[1746431374361,6.8131,146.77,146.74,6.8144]
[1746431374560,4.42992068,146.76,146.74,6.8144]
[1746431374857,6.8131,146.77,146.74,6.8144]
[1746431375058,4.42975044,146.76,146.74,6.8144]
[1746431375257,6.8127,146.78,146.74,6.8144]
[1746431375454,4.42996222,146.77,146.74,6.8144]
[1746431375655,4.42996222,146.76,146.74,6.8144]
[1746431375861,6.8127,146.78,146.74,6.8144]
[1746431376059,4.42973592,146.77,146.75,6.8137]
[1746431376259,4.42973592,146.76,146.75,6.8137]
[1746431377854,6.8127,146.78,146.75,6.8137]
[1746431378057,4.42922697,146.77,146.75,6.8137]
[1746431378255,4.42922697,146.76,146.75,6.8137]
[1746431378459,6.8127,146.78,146.75,6.8137]
[1746431378662,4.4292436,146.77,146.74,6.8142]
[1746431378959,4.4292436,146.76,146.73,24.32]
[1746431379159,6.8127,146.78,146.73,24.32]
[1746431379356,4.42914943,146.77,146.75,6.8139]
[1746431379661,4.42914943,146.76,146.75,6.8139]
[1746431380266,6.8127,146.78,146.75,6.8139]
[1746431380563,4.43160228,146.77,146.75,6.8139]
[1746431380760,4.43160228,146.76,146.75,6.8139]
[1746431382062,6.8127,146.78,146.75,6.8139]
[1746431382269,4.43325087,146.77,146.75,6.8139]
[1746431382466,4.43325087,146.76,146.75,6.8139]
[1746431385169,4.43560251,146.76,146.75,6.8139]
[1746431385564,4.43560251,146.76,146.74,6.8142]
[1746431385760,10.08973736,146.77,146.74,6.8142]
[1746431385967,4.43560251,146.76,146.74,6.8142]
[1746431386165,10.08973736,146.77,146.74,6.8142]
[1746431386371,4.43580135,146.76,146.74,6.8142]
[1746431386569,10.08973736,146.77,146.74,6.8142]
[1746431386772,4.43613621,146.76,146.74,6.8142]
[1746431387068,10.08973736,146.77,146.74,6.8142]
[1746431387268,4.43609375,146.76,146.74,6.8142]
[1746431387470,10.08973736,146.77,146.74,6.8142]
[1746431387670,4.43609375,146.76,146.74,6.8142]
[1746431387873,10.08973736,146.77,146.74,6.8142]
[1746431388073,4.43684946,146.76,146.74,6.8142]
[1746431388272,10.08973736,146.77,146.74,6.8142]
[1746431388579,4.43686097,146.76,146.74,6.8142]
[1746431388771,10.08973736,146.77,146.74,6.8142]
[1746431389073,4.43159506,146.76,146.74,6.8142]
[1746431389274,10.08973736,146.77,146.74,6.8142]
[1746431389476,4.43160619,146.76,146.74,6.8142]
[1746431389775,6.8135,146.76,146.74,6.8142]
[1746431389976,3.27673736,146.75,146.73,31.1347]
[1746431390175,3.27673736,146.75,146.73,6.8147]
[1746431392077,4.44262357,146.74,146.73,6.8147]
[1746431394786,4.43691094,146.74,146.73,6.8147]
[1746431396585,4.43942894,146.74,146.73,6.8147]
[1746431399880,11.25382894,146.74,146.72,1.9357]
[1746431400085,4.43942894,146.73,146.71,6.8156]
[1746431400279,4.43942894,146.72,146.7,26.4202]
[1746431400486,3.27673736,146.75,146.7,26.4202]
[1746431400686,4.43885903,146.74,146.71,3.27673736]
[1746431400881,4.43885903,146.73,146.72,2.0508]
[1746431401387,10.09013736,146.77,146.73,6.8146]
[1746431401586,4.44425682,146.76,146.73,6.8146]
[1746431401787,4.44425682,146.75,146.73,6.8146]
[1746431401983,4.44425682,146.74,146.73,6.8146]
[1746431403288,4.44311332,146.74,146.73,6.8146]
[1746431408095,24.32,146.8,146.72,5.32753736]
[1746431408389,27.57483199,146.83,146.75,3.27483199]
[1746431408591,24.3,146.83,146.75,3.27483199]
[1746431408890,27.57450346,146.83,146.76,3.27450346]
[1746431409091,27.57450946,146.83,146.76,3.27450946]
[1746431409287,6.8108,146.82,146.78,6.8122]
[1746431409585,6.8108,146.82,146.76,3.27450946]
[1746431409790,6.8108,146.82,146.74,24.3]
[1746431411285,6.8108,146.82,146.79,6.8119]
[1746431421001,31.1103,146.83,146.8,6.8115]
[1746431424505,24.3,146.83,146.75,2.1141]
[1746431424706,24.28,146.86,146.75,7.23087626]
[1746431425209,31.0891,146.86,146.82,6.8103]
[1746431425413,31.0891,146.86,146.79,24.28]
[1746431425613,31.0891,146.86,146.8,1.9581]
[1746431426005,31.0891,146.86,146.8,3.9251]
[1746431426512,31.0891,146.86,146.82,6.8104]
[1746431427118,31.0891,146.86,146.83,6.8101]
[1746431428214,6.8091,146.86,146.83,6.8101]
[1746431428410,6.8084,146.87,146.83,6.8101]
[1746431431917,10.08173464,146.86,146.83,6.8101]
[1746431432315,6.8093,146.85,146.82,6.8105]
[1746431432518,3.27283464,146.84,146.8,3.9251]
[1746431432814,3.27283464,146.84,146.8,1.9581]
[1746431433015,6.8105,146.83,146.8,1.9581]
[1746431433917,6.8105,146.83,146.8,8.7697]
[1746431436318,6.8105,146.83,146.81,6.8111]
[1746431440325,24.28,146.85,146.8,1.9581]
[1746431452331,24.28,146.85,146.78,24.28]
[1746431453733,3.27476942,146.82,146.78,24.28]
[1746431457239,3.27476942,146.84,146.78,27.55476942]
[1746431465241,3.27476942,146.84,146.75,4.1807]
[1746431465443,3.27476942,146.82,146.75,7.45546942]
[1746431467747,5.11744416,146.84,146.75,4.1807]
[1746431482750,9.21624416,146.84,146.75,4.1807]
[1746431487744,3.27531268,146.8,146.75,4.1807]
[1746431489757,3.27531268,146.76,146.72,1.9996]
[1746431501266,24.26,146.81,146.72,5.27491268]
[1746431501466,3.27531268,146.8,146.74,3.27531268]
[1746431501869,3.27531268,146.78,146.72,5.27491268]
[1746431516572,3.27531268,146.78,146.72,1.9996]
[1746431516780,3.27531268,146.78,146.72,5.27491268]
[1746431519380,24.26,146.81,146.72,5.27491268]
[1746431519579,3.27531268,146.79,146.72,5.27491268]
[1746431522478,24.26,146.81,146.74,3.27531268]
[1746431522676,24.26,146.81,146.76,3.27531268]
[1746431522876,3.27531268,146.82,146.76,3.27531268]
[1746431524782,28.3388,146.84,146.76,3.27531268]
[1746431524984,3.27531268,146.83,146.76,3.27531268]
[1746431525185,3.27531268,146.83,146.77,4.1198]
[1746431525682,3.27531268,146.83,146.78,3.27531268]
[1746431525885,24.24,146.88,146.8,3.27531268]
[1746431526188,3.27531268,146.86,146.8,3.27531268]
[1746431528686,27.51531268,146.88,146.8,3.27531268]
[1746431532992,24.24,146.88,146.82,3.27531268]
[1746431533194,0.30349,146.9,146.83,24.22]
[1746431533394,3.57880268,146.9,146.83,24.22]
[1746431533594,3.27531268,146.88,146.83,27.49531268]
[1746431543999,3.27531268,146.9,146.83,27.49531268]
[1746431544997,3.27531268,146.9,146.84,2.006]
[1746431552012,3.27531268,146.9,146.84,5.28131268]
[1746431552809,3.27531268,146.9,146.84,3.27531268]
[1746431553808,3.27531268,146.86,146.8,24.2]
[1746431554013,3.27531268,146.84,146.8,24.2]
[1746431557422,5.3148,146.87,146.8,24.2]
[1746431557720,3.27531268,146.83,146.8,24.2]
[1746431557918,3.27531268,146.83,146.77,29.54911268]
[1746431559021,3.27531268,146.83,146.77,26.2738]
[1746431559214,3.27531268,146.81,146.77,24.2]
[1746431560224,3.27531268,146.81,146.78,6.8125]
[1746431562421,3.27531268,146.81,146.79,6.812]
[1746431572927,10.08641268,146.81,146.79,6.812]
[1746431573125,10.08641268,146.81,146.78,6.8124]
[1746431574231,10.08641268,146.81,146.79,6.812]
[1746431574430,3.27531268,146.81,146.79,6.812]
[1746431580136,6.8109,146.82,146.79,6.812]
[1746431580331,31.01,146.84,146.78,3.27531268]
[1746431580532,31.01,146.84,146.78,5.34071268]
[1746431580737,10.08481268,146.85,146.82,6.8106]
[1746431581938,3.27531268,146.83,146.77,24.2]
[1746431582142,3.27531268,146.81,146.77,24.2]
[1746431582942,10.08681268,146.81,146.78,6.8122]
[1746431586036,3.27531268,146.79,146.77,24.2]
[1746431586238,3.27531268,146.79,146.74,28.3533]
[1746431586740,10.08751268,146.79,146.76,6.8133]
[1746431593847,3.27531268,146.79,146.76,6.8133]
[1746431600747,10.08751268,146.79,146.76,6.8133]
[1746431605250,6.8125,146.78,146.76,6.8133]
[1746431605445,3.27531268,146.79,146.76,6.8133]
[1746431606545,10.08751268,146.79,146.76,6.8133]
[1746431606750,10.08751268,146.79,146.77,6.813]
[1746431607552,10.08751268,146.79,146.76,6.8132]
[1746431616261,10.08751268,146.79,146.77,6.8129]
[1746431617955,3.27531268,146.8,146.77,6.8129]
[1746431618156,3.27531268,146.81,146.78,6.8125]
[1746431618363,27.47531268,146.83,146.74,28.3533]
[1746431618550,3.27531268,146.85,146.78,3.27531268]
[1746431618950,3.27531268,146.85,146.8,3.27531268]
[1746431619355,10.08481268,146.85,146.82,6.8104]
[1746431619655,24.18,146.86,146.8,3.27531268]
[1746431619956,10.40259268,146.87,146.84,6.8094]
[1746431620258,3.59419268,146.87,146.84,6.8094]
[1746431620857,0.31888,146.87,146.82,27.45531268]
[1746431621060,0.31888,146.87,146.84,3.27531268]
[1746431621455,0.31888,146.87,146.86,6.8088]
[1746431630569,0.31888,146.87,146.85,10.9662]
[1746431630867,3.27531268,146.87,146.85,2.058]
[1746431632668,6.8082,146.88,146.85,8.8671]
[1746431634670,10.08291268,146.89,146.85,8.8671]
[1746431635267,10.08291268,146.89,146.86,6.8088]
[1746431635863,6.808,146.88,146.85,8.8671]
[1746431637171,6.808,146.88,146.85,8.867]
[1746431640173,6.8084,146.87,146.84,6.8096]
[1746431640372,10.08371268,146.87,146.84,6.8096]
[1746431640573,3.27531268,146.87,146.82,27.45531268]
[1746431641073,3.27531268,146.87,146.85,6.809]
[1746431643573,6.8081,146.88,146.85,6.809]
[1746431644274,10.08291268,146.89,146.85,6.809]
[1746431649082,10.08291268,146.89,146.86,6.8088]
[1746431649280,3.27531268,146.89,146.82,27.45531268]
[1746431649480,3.27531268,146.92,146.86,3.27531268]
[1746431649778,3.27531268,146.9,146.83,3.27531268]
[1746431649978,3.27531268,146.88,146.82,24.18]
[1746431650577,10.08331268,146.88,146.85,6.8089]
[1746431651089,3.27531268,146.88,146.82,27.45531268]
[1746431651885,3.27531268,146.88,146.85,6.8089]
[1746431652685,3.27531268,146.88,146.86,6.8088]
[1746431652990,3.27531268,146.88,146.82,27.45531268]
[1746431653184,3.27531268,146.92,146.86,3.27531268]
[1746431653390,3.27531268,146.92,146.86,27.43531268]
[1746431653586,10.08151268,146.92,146.86,27.43531268]
[1746431653891,10.08151268,146.92,146.88,6.8075]
[1746431654090,3.27531268,146.92,146.86,27.43531268]
[1746431655190,10.08141268,146.92,146.89,6.8071]
[1746431655389,3.27531268,146.92,146.89,6.8071]
[1746431655587,24.16,146.93,146.86,27.43531268]
[1746431655788,3.27531268,146.94,146.91,6.8062]
[1746431656591,10.08071268,146.94,146.91,6.8062]
[1746431656786,10.08071268,146.94,146.9,6.8068]
[1746431657592,6.8056,146.93,146.9,6.8068]
[1746431662899,6.8056,146.93,146.89,6.8072]
[1746431663597,6.8056,146.93,146.9,6.8068]
[1746431666005,5.10866571,146.91,146.81,1.18464052]
[1746431666295,5.10866571,146.88,146.79,12.06636926]
[1746431666496,6.8101,146.84,146.79,12.06636926]
[1746431666994,4.45003783,146.83,146.8,6.8115]
[1746431667197,6.8085,146.87,146.8,6.8115]
[1746431667399,4.4499117,146.86,146.8,6.8115]
[1746431667595,4.4499117,146.85,146.8,6.8115]
[1746431667898,4.4499117,146.84,146.8,6.8115]
[1746431668090,4.4499117,146.83,146.8,6.8115]
[1746431668296,6.8085,146.87,146.8,6.8115]
[1746431668492,4.45256749,146.86,146.8,6.8115]
[1746431668695,4.45256749,146.85,146.8,6.8115]
[1746431668896,4.45256749,146.84,146.8,6.8115]
[1746431669194,4.45256749,146.83,146.8,6.8115]
[1746431669395,6.8085,146.87,146.81,6.8109]
[1746431669595,4.4543571,146.86,146.81,6.8109]
[1746431669793,4.4543571,146.85,146.81,6.8109]
[1746431669995,4.4543571,146.84,146.81,6.8109]
[1746431670190,4.45470482,146.83,146.81,6.8109]
[1746431670491,6.8085,146.87,146.79,4.0258]
[1746431670794,4.45380863,146.86,146.79,4.0258]
[1746431670994,4.45380863,146.85,146.79,4.0258]
[1746431671199,4.45380863,146.84,146.79,4.0258]
[1746431671390,36.03676571,146.88,146.83,6.8101]
[1746431671592,4.45315991,146.87,146.79,4.0258]
[1746431671790,4.45315991,146.86,146.79,4.0258]
[1746431672092,4.45315991,146.85,146.79,4.0258]
[1746431672290,30.9281,146.88,146.85,6.8092]
[1746431672490,4.44602088,146.87,146.85,6.8092]
[1746431672699,4.44602088,146.86,146.85,6.8092]
[1746431673304,4.44602088,146.86,146.84,6.8094]
[1746431673604,4.44602088,146.85,146.84,6.8094]
[1746431681613,30.9279,146.88,146.84,6.8094]
[1746431681814,4.44310882,146.87,146.84,6.8094]
[1746431682014,4.44310882,146.86,146.85,6.8093]
[1746431687017,3.27262129,146.87,146.85,6.8093]
[1746431687220,4.44152521,146.86,146.85,6.8093]
[1746431688815,4.44061221,146.86,146.85,6.8093]
[1746431690619,3.27262129,146.87,146.85,6.8093]
[1746431690823,4.4404531,146.86,146.85,6.8093]
[1746431692418,3.27262129,146.87,146.85,6.8093]
[1746431692625,4.44027261,146.86,146.85,6.8093]
[1746431696626,4.43809436,146.86,146.85,6.8093]
[1746431697821,10.08102129,146.87,146.85,6.8093]
[1746431698126,4.43806113,146.86,146.85,6.8093]
[1746431701229,4.43966319,146.86,146.85,6.8093]
[1746431702533,4.43888517,146.86,146.85,6.8093]
[1746431704430,4.4284318,146.86,146.85,6.8093]
[1746431704835,4.4284318,146.86,146.84,6.8095]
[1746431705031,4.4284318,146.85,146.84,6.8095]
[1746431706232,4.43518408,146.85,146.84,6.8095]
[1746431708032,4.43739228,146.85,146.84,6.8095]
[1746431709834,4.44364676,146.85,146.84,6.8095]
[1746431711637,4.44961121,146.85,146.84,6.8095]
[1746431715641,4.44961121,146.85,146.8,6.8114]
[1746431715942,7.72388914,146.84,146.79,4.0258]
[1746431716138,4.44961121,146.83,146.79,4.0258]